[Event "Czech Open Rapid G1 2024"]
[Site "Pardubice"]
[Date "2024.07.17"]
[Round "3.23"]
[White "Sikora, Lukas"]
[Black "Berin, Artem"]
[Result "0-1"]
[Annotator "RC"]
[ECO "E46"]
[WhiteElo "1928"]
[BlackElo "2234"]
[PlyCount "62"]
[EventDate "2024.07.16"]
[EventType "swiss"]
[EventCountry "CZE"]
[SourceTitle "playchess.com"]
[Source "ChessBase"]
[SourceQuality "1"]
[TimeControl "1200+10"]

1. d4 {[%emt 0:03:05]} Nf6 {[%emt 0:00:02]} 2. c4 {[%emt 0:00:01]} e6 {[%emt 0:00:01]} 3. Nc3 {[%emt 0:00:03]} Bb4 {[%emt 0:00:02]} 4. e3 {[%emt 0:01:15]} O-O {[%emt 0:00:06]} 5. Nge2 {[%emt 0:00:10]} c6 {[%emt 0:00:57]} 6. a3 {[%emt 0:00:07]} Ba5 {[%emt 0:00:01]} 7. b4 {[%emt 0:00:38]} Bc7 {[%emt 0:00:02]} 8. Ng3 {[%emt 0:03:17]} d5 {[%emt 0:01:27]} 9. f4 {[%emt 0:00:20]} a5 {[%emt 0:00:42]} 10. Bb2 {[%emt 0:00:16]} Qe7 {[%emt 0:00:03]} 11. c5 {[%emt 0:00:37]} axb4 {[%emt 0:00:32]} 12. axb4 {[%emt 0:00:01]} Rxa1 {[%emt 0:00:02]} 13. Qxa1 {[%emt 0:00:52]} Ng4 {[%emt 0:00:10]} 14. Nd1 {[%emt 0:01:19]} Qh4 {[%emt 0:00:28]} 15. Bd3 {[%emt 0:01:57]} Nxh2 {[%emt 0:05:15]} 16. Kf2 {[%emt 0:00:21]} Bxf4 {[%emt 0:00:40]} 17. exf4 {[%emt 0:00:11]} Qxf4+ {[%emt 0:00:02]} 18. Kg1 {[%emt 0:00:21]} Qxg3 {[%emt 0:00:05]} 19. Bxh7+ {[%emt 0:00:24]} Kxh7 {[%emt 0:00:04]} 20. Rxh2+ {[%emt 0:00:03]} Kg8 {[%emt 0:00:01]} 21. Nf2 {[%emt 0:00:22]} Na6 {[%emt 0:02:48]} 22. Qb1 {[%emt 0:03:50]} f5 {[%emt 0:01:48]} 23. Rh3 {[%emt 0:00:10]} Qg5 {[%emt 0:00:39]} 24. Nd3 {[%emt 0:00:18]} Bd7 {[%emt 0:02:19]} 25. Qe1 {[%emt 0:00:58]} f4 {[%emt 0:01:24]} 26. Bc1 {[%emt 0:01:20]} e5 {[%emt 0:00:16]} 27. Rh4 {[%emt 0:01:05]} Bf5 {[%emt 0:01:30]} 28. Nxe5 {[%emt 0:00:04]} Be4 {[%emt 0:00:01]} 29. g3 {[%emt 0:00:32]} Qxg3+ {[%emt 0:00:12]} 30. Qxg3 {[%emt 0:00:08]} fxg3 {[%emt 0:00:01]} 31. Bf4 {[%emt 0:00:51]} g2 {[%emt 0:00:04]} 0-1

[Event "Czech Open Rapid G1 2024"]
[Site "Pardubice"]
[Date "2024.07.17"]
[Round "3.24"]
[White "Hosticka, Frantisek"]
[Black "Karpinets, Andrian"]
[Result "1-0"]
[Annotator "RC"]
[ECO "B30"]
[WhiteElo "2062"]
[BlackElo "1759"]
[PlyCount "115"]
[EventDate "2024.07.16"]
[EventType "swiss"]
[EventCountry "CZE"]
[SourceTitle "playchess.com"]
[Source "ChessBase"]
[SourceQuality "1"]
[TimeControl "1200+10"]

1. e4 {[%emt 0:02:02]} c5 {[%emt 0:00:04]} 2. Nf3 {[%emt 0:00:07]} Nc6 {[%emt 0:00:02]} 3. Bb5 {[%emt 0:00:01]} e6 {[%emt 0:00:00]} 4. O-O {[%emt 0:00:24]} Nge7 {[%emt 0:00:02]} 5. b3 {[%emt 0:00:02]} a6 {[%emt 0:00:05]} 6. Bxc6 {[%emt 0:00:01]} Nxc6 {[%emt 0:00:06]} 7. Bb2 {[%emt 0:00:02]} d6 {[%emt 0:00:50]} 8. d4 {[%emt 0:00:27]} cxd4 {[%emt 0:00:07]} 9. Nxd4 {[%emt 0:00:01]} e5 {[%emt 0:00:51]} 10. Nxc6 {[%emt 0:00:15]} bxc6 {[%emt 0:00:01]} 11. c4 {[%emt 0:00:25]} Be7 {[%emt 0:00:04]} 12. f4 {[%emt 0:00:16]} O-O {[%emt 0:01:25]} 13. fxe5 {[%emt 0:00:25]} dxe5 {[%emt 0:00:16]} 14. Bxe5 {[%emt 0:02:39]} Bc5+ {[%emt 0:00:52]} 15. Kh1 {[%emt 0:00:07]} Qxd1 {[%emt 0:00:39]} 16. Rxd1 {[%emt 0:00:01]} Bg4 {[%emt 0:00:04]} 17. Re1 {[%emt 0:01:37]} Rfe8 {[%emt 0:00:32]} 18. Bc3 {[%emt 0:00:49]} Rad8 {[%emt 0:00:40]} 19. h3 {[%emt 0:01:13]} Bh5 {[%emt 0:00:02]} 20. Nd2 {[%emt 0:01:20]} Rd3 {[%emt 0:00:12]} 21. Ba5 {[%emt 0:03:41]} f6 {[%emt 0:02:48]} 22. Rac1 {[%emt 0:02:25]} Be3 {[%emt 0:07:07]} 23. Rc2 {[%emt 0:00:18]} Re5 {[%emt 0:00:23]} 24. c5 {[%emt 0:01:56]} Rxc5 {[%emt 0:01:36]} 25. Rxe3 {[%emt 0:00:23]} Rxc2 {[%emt 0:02:34]} 26. Rxd3 {[%emt 0:00:04]} Rxa2 {[%emt 0:00:00]} 27. b4 {[%emt 0:00:39]} Kf7 {[%emt 0:00:10]} 28. Nf3 {[%emt 0:00:18]} Bg6 {[%emt 0:00:15]} 29. Rd7+ {[%emt 0:00:31]} Ke6 {[%emt 0:00:01]} 30. Ra7 {[%emt 0:00:31]} Bxe4 {[%emt 0:00:21]} 31. Rxg7 {[%emt 0:00:36]} c5 {[%emt 0:01:03]} 32. Rc7 {[%emt 0:00:35]} cxb4 {[%emt 0:00:10]} 33. Bxb4 {[%emt 0:00:02]} Bxf3 {[%emt 0:00:41]} 34. gxf3 {[%emt 0:00:03]} Rf2 {[%emt 0:00:11]} 35. Rc3 {[%emt 0:00:38]} Rb2 {[%emt 0:00:14]} 36. Ba5 {[%emt 0:00:04]} Ra2 {[%emt 0:00:03]} 37. Rc6+ {[%emt 0:00:03]} Kd5 {[%emt 0:01:19]} 38. Rxa6 {[%emt 0:00:10]} Kc4 {[%emt 0:00:01]} 39. Ra7 {[%emt 0:00:34]} Kb5 {[%emt 0:00:01]} 40. Bb6 {[%emt 0:00:04]} Rd2 {[%emt 0:00:39]} 41. Bg1 {[%emt 0:00:11]} h5 {[%emt 0:00:01]} 42. Rf7 {[%emt 0:00:10]} Rd6 {[%emt 0:00:06]} 43. h4 {[%emt 0:00:13]} Kc6 {[%emt 0:00:07]} 44. Rh7 {[%emt 0:00:14]} Rd5 {[%emt 0:00:01]} 45. Rh6 {[%emt 0:00:04]} Rf5 {[%emt 0:00:01]} 46. Bd4 {[%emt 0:00:13]} Rxf3 {[%emt 0:00:15]} 47. Rxf6+ {[%emt 0:00:02]} Rxf6 {[%emt 0:00:02]} 48. Bxf6 {[%emt 0:00:01]} Kd5 {[%emt 0:00:01]} 49. Kg2 {[%emt 0:00:02]} Ke6 {[%emt 0:00:01]} 50. Bb2 {[%emt 0:00:03]} Kf5 {[%emt 0:00:02]} 51. Kg3 {[%emt 0:00:01]} Ke6 {[%emt 0:00:02]} 52. Kf4 {[%emt 0:00:00]} Kf7 {[%emt 0:00:01]} 53. Kg5 {[%emt 0:00:02]} Kg8 {[%emt 0:00:01]} 54. Kxh5 {[%emt 0:00:01]} Kh7 {[%emt 0:00:00]} 55. Kg5 {[%emt 0:00:02]} Kg8 {[%emt 0:00:01]} 56. Kg6 {[%emt 0:00:03]} Kf8 {[%emt 0:00:01]} 57. h5 {[%emt 0:00:07]} Kg8 {[%emt 0:00:01]} 58. h6 {[%emt 0:00:03]} 1-0

[Event "Czech Open Rapid G1 2024"]
[Site "Pardubice"]
[Date "2024.07.17"]
[Round "3.25"]
[White "Sladek, Vladislav"]
[Black "Ret, Adam Josef"]
[Result "1/2-1/2"]
[Annotator "RC"]
[ECO "B22"]
[WhiteElo "1928"]
[BlackElo "2085"]
[PlyCount "62"]
[EventDate "2024.07.16"]
[EventType "swiss"]
[EventCountry "CZE"]
[SourceTitle "playchess.com"]
[Source "ChessBase"]
[SourceQuality "1"]
[TimeControl "1200+10"]

1. e4 {[%emt 0:00:02]} c5 {[%emt 0:00:01]} 2. d4 {[%emt 0:00:10]} cxd4 {[%emt 0:00:03]} 3. c3 {[%emt 0:00:02]} Nf6 {[%emt 0:00:08]} 4. e5 {[%emt 0:00:18]} Nd5 {[%emt 0:00:01]} 5. cxd4 {[%emt 0:00:14]} d6 {[%emt 0:00:02]} 6. Nf3 {[%emt 0:00:43]} Nc6 {[%emt 0:00:05]} 7. Be2 {[%emt 0:01:28]} Bf5 {[%emt 0:00:52]} 8. O-O {[%emt 0:00:25]} e6 {[%emt 0:00:01]} 9. Nc3 {[%emt 0:00:20]} Nxc3 {[%emt 0:02:43]} 10. bxc3 {[%emt 0:00:03]} dxe5 {[%emt 0:00:10]} 11. Nxe5 {[%emt 0:00:36]} Bd6 {[%emt 0:03:30]} 12. f4 {[%emt 0:00:50]} O-O {[%emt 0:00:15]} 13. Bd3 {[%emt 0:01:31]} Bxd3 {[%emt 0:00:26]} 14. Qxd3 {[%emt 0:01:09]} Nxe5 {[%emt 0:00:39]} 15. fxe5 {[%emt 0:00:13]} Bxe5 {[%emt 0:00:23]} 16. Qe4 {[%emt 0:00:28]} Bf6 {[%emt 0:00:15]} 17. Qg4 {[%emt 0:03:08]} g6 {[%emt 0:02:38]} 18. Rb1 {[%emt 0:00:23]} b6 {[%emt 0:02:52]} 19. Rb2 {[%emt 0:02:04]} Rc8 {[%emt 0:00:34]} 20. Rbf2 {[%emt 0:00:08]} Bg7 {[%emt 0:01:12]} 21. Rf3 {[%emt 0:01:35]} Rxc3 {[%emt 0:00:33]} 22. Rxc3 {[%emt 0:00:54]} Qxd4+ {[%emt 0:00:50]} 23. Qxd4 {[%emt 0:00:21]} Bxd4+ {[%emt 0:00:02]} 24. Re3 {[%emt 0:00:05]} Rc8 {[%emt 0:00:06]} 25. Kf2 {[%emt 0:00:43]} Rc2+ {[%emt 0:01:08]} 26. Kf3 {[%emt 0:00:12]} Bxe3 {[%emt 0:00:51]} 27. Bxe3 {[%emt 0:00:04]} Rxa2 {[%emt 0:00:05]} 28. Bh6 {[%emt 0:00:04]} Ra3+ {[%emt 0:01:18]} 29. Kf2 {[%emt 0:00:07]} Ra2+ {[%emt 0:01:30]} 30. Kf3 {[%emt 0:00:04]} Ra3+ {[%emt 0:00:13]} 31. Kf2 {[%emt 0:00:04]} Ra2+ {[%emt 0:00:30]} 1/2-1/2

[Event "Czech Open Rapid G1 2024"]
[Site "Pardubice"]
[Date "2024.07.17"]
[Round "3.26"]
[White "Danek, Pavel"]
[Black "Vrana, Frantisek"]
[Result "0-1"]
[Annotator "RC"]
[ECO "A80"]
[WhiteElo "1940"]
[BlackElo "2147"]
[PlyCount "194"]
[EventDate "2024.07.16"]
[EventType "swiss"]
[EventCountry "CZE"]
[SourceTitle "playchess.com"]
[Source "ChessBase"]
[SourceQuality "1"]
[TimeControl "1200+10"]

1. d4 {[%emt 0:00:01]} f5 {[%emt 0:00:07]} 2. f4 {[%emt 0:00:16]} Nf6 {[%emt 0:00:09]} 3. Nf3 {[%emt 0:00:03]} e6 {[%emt 0:00:12]} 4. e3 {[%emt 0:00:08]} b6 {[%emt 0:00:06]} 5. Be2 {[%emt 0:00:09]} Bb7 {[%emt 0:00:03]} 6. O-O {[%emt 0:00:07]} Be7 {[%emt 0:01:34]} 7. Bd2 {[%emt 0:00:06]} O-O {[%emt 0:00:11]} 8. Be1 {[%emt 0:00:11]} Ne4 {[%emt 0:00:12]} 9. Nbd2 {[%emt 0:00:13]} d6 {[%emt 0:00:13]} 10. Bc4 {[%emt 0:01:06]} Bd5 {[%emt 0:00:20]} 11. Be2 {[%emt 0:00:38]} c5 {[%emt 0:00:09]} 12. c3 {[%emt 0:00:37]} Nd7 {[%emt 0:00:22]} 13. Nxe4 {[%emt 0:00:48]} Bxe4 {[%emt 0:00:16]} 14. Nd2 {[%emt 0:00:37]} Bb7 {[%emt 0:00:32]} 15. Bg3 {[%emt 0:00:19]} Re8 {[%emt 0:00:37]} 16. Bf3 {[%emt 0:01:02]} Bxf3 {[%emt 0:00:17]} 17. Nxf3 {[%emt 0:00:27]} h6 {[%emt 0:01:33]} 18. Qd3 {[%emt 0:02:03]} Nf6 {[%emt 0:01:27]} 19. Bh4 {[%emt 0:00:13]} g5 {[%emt 0:02:30]} 20. fxg5 {[%emt 0:02:27]} Ne4 {[%emt 0:00:00]} 21. d5 {[%emt 0:02:00]} hxg5 {[%emt 0:00:00]} 22. Be1 {[%emt 0:01:37]} Qc8 {[%emt 0:00:41]} 23. dxe6 {[%emt 0:01:25]} Qxe6 {[%emt 0:00:08]} 24. Rd1 {[%emt 0:03:04]} Rf8 {[%emt 0:06:04]} 25. Qd5 {[%emt 0:01:15]} Qf7 {[%emt 0:01:55]} 26. Qxf7+ {[%emt 0:00:09]} Rxf7 {[%emt 0:00:02]} 27. Nd2 {[%emt 0:00:01]} d5 {[%emt 0:00:38]} 28. Nxe4 {[%emt 0:00:14]} dxe4 {[%emt 0:00:03]} 29. g3 {[%emt 0:01:58]} Rd8 {[%emt 0:00:58]} 30. Rxd8+ {[%emt 0:00:03]} Bxd8 {[%emt 0:00:02]} 31. Rf2 {[%emt 0:00:04]} c4 {[%emt 0:00:51]} 32. Rd2 {[%emt 0:00:05]} Be7 {[%emt 0:00:53]} 33. Rd7 {[%emt 0:00:04]} Bc5 {[%emt 0:00:07]} 34. Rd8+ {[%emt 0:00:10]} Kg7 {[%emt 0:00:09]} 35. Bf2 {[%emt 0:00:04]} g4 {[%emt 0:00:11]} 36. Kf1 {[%emt 0:00:09]} Kf6 {[%emt 0:00:07]} 37. Ke2 {[%emt 0:00:17]} Ke6 {[%emt 0:00:06]} 38. Rd2 {[%emt 0:00:22]} b5 {[%emt 0:00:05]} 39. a3 {[%emt 0:00:11]} a6 {[%emt 0:00:07]} 40. Rd8 {[%emt 0:00:03]} Rb7 {[%emt 0:00:31]} 41. Ra8 {[%emt 0:00:10]} Ba7 {[%emt 0:00:02]} 42. Rd8 {[%emt 0:00:01]} a5 {[%emt 0:00:04]} 43. Re8+ {[%emt 0:00:23]} Kf7 {[%emt 0:00:22]} 44. Re5 {[%emt 0:00:05]} Kf6 {[%emt 0:00:01]} 45. Rd5 {[%emt 0:00:03]} Ke6 {[%emt 0:00:05]} 46. Rd8 {[%emt 0:00:01]} b4 {[%emt 0:00:09]} 47. axb4 {[%emt 0:00:27]} axb4 {[%emt 0:00:02]} 48. Rd2 {[%emt 0:00:25]} b3 {[%emt 0:00:13]} 49. Rd8 {[%emt 0:00:08]} Bb6 {[%emt 0:00:17]} 50. Rc8 {[%emt 0:00:10]} Kd5 {[%emt 0:00:02]} 51. Rf8 {[%emt 0:00:04]} Ke6 {[%emt 0:00:05]} 52. Rc8 {[%emt 0:00:05]} Bc7 {[%emt 0:00:02]} 53. Ra8 {[%emt 0:00:08]} Bb6 {[%emt 0:00:22]} 54. Re8+ {[%emt 0:00:05]} Kf7 {[%emt 0:00:10]} 55. Rc8 {[%emt 0:00:18]} Bc7 {[%emt 0:00:01]} 56. Ra8 {[%emt 0:00:02]} Ke7 {[%emt 0:00:01]} 57. Ra4 {[%emt 0:00:03]} Bd6 {[%emt 0:00:09]} 58. Be1 {[%emt 0:00:25]} Rc7 {[%emt 0:00:03]} 59. Ra5 {[%emt 0:00:05]} Ke6 {[%emt 0:00:03]} 60. Bf2 {[%emt 0:00:08]} Bc5 {[%emt 0:00:04]} 61. Ra6+ {[%emt 0:00:06]} Kd5 {[%emt 0:00:05]} 62. Rf6 {[%emt 0:00:07]} Ke5 {[%emt 0:00:02]} 63. Ra6 {[%emt 0:00:00]} Rd7 {[%emt 0:00:12]} 64. Rc6 {[%emt 0:00:17]} Kd5 {[%emt 0:00:03]} 65. Rf6 {[%emt 0:00:15]} Ke5 {[%emt 0:00:04]} 66. Rc6 {[%emt 0:00:03]} Rd5 {[%emt 0:00:05]} 67. Ra6 {[%emt 0:00:20]} Be7 {[%emt 0:00:09]} 68. Rc6 {[%emt 0:00:02]} Bc5 {[%emt 0:00:02]} 69. Ra6 {[%emt 0:00:01]} Bd6 {[%emt 0:00:24]} 70. Ra4 {[%emt 0:00:12]} Rc5 {[%emt 0:00:03]} 71. Ra6 {[%emt 0:00:03]} Kd5 {[%emt 0:00:09]} 72. Ra4 {[%emt 0:00:03]} Kc6 {[%emt 0:00:11]} 73. Ra8 {[%emt 0:00:08]} Kb7 {[%emt 0:00:05]} 74. Ra4 {[%emt 0:00:02]} Bc7 {[%emt 0:00:07]} 75. Be1 {[%emt 0:00:16]} Ba5 {[%emt 0:00:02]} 76. Bd2 {[%emt 0:00:09]} Kc6 {[%emt 0:00:02]} 77. Be1 {[%emt 0:00:09]} Kb5 {[%emt 0:00:02]} 78. Ra1 {[%emt 0:00:01]} Rc8 {[%emt 0:00:06]} 79. Rd1 {[%emt 0:00:05]} Kc5 {[%emt 0:00:03]} 80. Ra1 {[%emt 0:00:08]} Bb6 {[%emt 0:00:04]} 81. Ra6 {[%emt 0:00:03]} Rh8 {[%emt 0:00:03]} 82. Bf2 {[%emt 0:00:17]} Rxh2 {[%emt 0:00:02]} 83. Ra8 {[%emt 0:00:00]} Rh5 {[%emt 0:00:14]} 84. Rc8+ {[%emt 0:00:03]} Kb5 {[%emt 0:00:04]} 85. Re8 {[%emt 0:00:04]} Bc5 {[%emt 0:00:02]} 86. Rb8+ {[%emt 0:00:04]} Kc6 {[%emt 0:00:01]} 87. Rc8+ {[%emt 0:00:06]} Kb6 {[%emt 0:00:04]} 88. Rb8+ {[%emt 0:00:02]} Kc6 {[%emt 0:00:01]} 89. Rc8+ {[%emt 0:00:00]} Kd5 {[%emt 0:00:01]} 90. Rd8+ {[%emt 0:00:08]} Bd6 {[%emt 0:00:02]} 91. Ra8 {[%emt 0:00:05]} Rh1 {[%emt 0:00:04]} 92. Be1 {[%emt 0:00:05]} Rh2+ {[%emt 0:00:04]} 93. Bf2 {[%emt 0:00:01]} Bxg3 {[%emt 0:00:04]} 94. Ra5+ {[%emt 0:00:10]} Ke6 {[%emt 0:00:03]} 95. Ra6+ {[%emt 0:00:04]} Ke5 {[%emt 0:00:04]} 96. Ra5+ {[%emt 0:00:01]} Kf6 {[%emt 0:00:01]} 97. Ra6+ {[%emt 0:00:01]} Kg5 {[%emt 0:00:01]} 0-1

[Event "Czech Open Rapid G1 2024"]
[Site "Pardubice"]
[Date "2024.07.17"]
[Round "3.27"]
[White "Ptacek, Lubos"]
[Black "Gschwendtner, Stanislav"]
[Result "1-0"]
[Annotator "RC"]
[ECO "B73"]
[WhiteElo "2036"]
[BlackElo "2011"]
[PlyCount "65"]
[EventDate "2024.07.16"]
[EventType "swiss"]
[EventCountry "CZE"]
[SourceTitle "playchess.com"]
[Source "ChessBase"]
[SourceQuality "1"]
[TimeControl "1200+10"]

1. e4 {[%emt 0:00:03]} c5 {[%emt 0:00:02]} 2. Nf3 {[%emt 0:00:03]} d6 {[%emt 0:00:03]} 3. d4 {[%emt 0:00:02]} cxd4 {[%emt 0:00:03]} 4. Nxd4 {[%emt 0:00:01]} Nf6 {[%emt 0:00:06]} 5. Nc3 {[%emt 0:00:02]} g6 {[%emt 0:00:04]} 6. Be2 {[%emt 0:00:06]} Bg7 {[%emt 0:00:02]} 7. O-O {[%emt 0:00:06]} Nc6 {[%emt 0:00:02]} 8. Be3 {[%emt 0:00:04]} O-O {[%emt 0:00:04]} 9. Rb1 {[%emt 0:00:34]} d5 {[%emt 0:00:09]} 10. Nxc6 {[%emt 0:00:35]} bxc6 {[%emt 0:00:01]} 11. e5 {[%emt 0:00:07]} Ne8 {[%emt 0:00:11]} 12. f4 {[%emt 0:00:12]} Nc7 {[%emt 0:00:09]} 13. Qd2 {[%emt 0:01:24]} f6 {[%emt 0:00:19]} 14. exf6 {[%emt 0:00:39]} exf6 {[%emt 0:00:09]} 15. Rbd1 {[%emt 0:01:14]} Rb8 {[%emt 0:00:46]} 16. Na4 {[%emt 0:01:00]} f5 {[%emt 0:01:04]} 17. b3 {[%emt 0:00:12]} Re8 {[%emt 0:01:43]} 18. Bxa7 {[%emt 0:00:35]} Ra8 {[%emt 0:00:29]} 19. Bb6 {[%emt 0:00:53]} d4 {[%emt 0:01:13]} 20. Bc4+ {[%emt 0:00:22]} Be6 {[%emt 0:00:35]} 21. Bxe6+ {[%emt 0:01:01]} Rxe6 {[%emt 0:00:09]} 22. Nc5 {[%emt 0:00:20]} Rd6 {[%emt 0:00:12]} 23. Nb7 {[%emt 0:00:29]} Qb8 {[%emt 0:00:08]} 24. Bxc7 {[%emt 0:01:11]} Qxc7 {[%emt 0:00:04]} 25. Nxd6 {[%emt 0:00:02]} Qxd6 {[%emt 0:00:02]} 26. a4 {[%emt 0:00:03]} c5 {[%emt 0:00:02]} 27. Rde1 {[%emt 0:00:22]} c4 {[%emt 0:01:11]} 28. bxc4 {[%emt 0:01:50]} Rxa4 {[%emt 0:00:16]} 29. Re8+ {[%emt 0:00:21]} Kf7 {[%emt 0:00:06]} 30. Rfe1 {[%emt 0:00:05]} Rxc4 {[%emt 0:00:29]} 31. R1e7+ {[%emt 0:00:58]} Kf6 {[%emt 0:00:04]} 32. Qf2 {[%emt 0:01:49]} d3 {[%emt 0:00:29]} 33. Qh4+ {[%emt 0:00:42]} 1-0

[Event "Czech Open Rapid G1 2024"]
[Site "Pardubice"]
[Date "2024.07.17"]
[Round "3.28"]
[White "Dovzhenko, Viktor"]
[Black "Stocek, Martin"]
[Result "1-0"]
[Annotator "RC"]
[ECO "A13"]
[WhiteElo "2044"]
[BlackElo "2110"]
[PlyCount "149"]
[EventDate "2024.07.16"]
[EventType "swiss"]
[EventCountry "CZE"]
[SourceTitle "playchess.com"]
[Source "ChessBase"]
[SourceQuality "1"]
[TimeControl "1200+10"]

1. g3 {[%emt 0:00:04]} d5 {[%emt 0:00:03]} 2. Bg2 {[%emt 0:00:04]} Nf6 {[%emt 0:00:02]} 3. c4 {[%emt 0:00:15]} e6 {[%emt 0:00:02]} 4. Nf3 {[%emt 0:00:25]} Be7 {[%emt 0:00:02]} 5. d3 {[%emt 0:00:27]} d4 {[%emt 0:00:48]} 6. O-O {[%emt 0:00:08]} O-O {[%emt 0:00:05]} 7. e3 {[%emt 0:00:09]} c5 {[%emt 0:00:14]} 8. Re1 {[%emt 0:01:08]} Nc6 {[%emt 0:00:22]} 9. exd4 {[%emt 0:00:08]} cxd4 {[%emt 0:00:02]} 10. Na3 {[%emt 0:00:35]} Re8 {[%emt 0:01:17]} 11. Bf4 {[%emt 0:01:02]} Bd6 {[%emt 0:03:25]} 12. Bxd6 {[%emt 0:01:42]} Qxd6 {[%emt 0:00:02]} 13. Nb5 {[%emt 0:00:04]} Qd8 {[%emt 0:00:43]} 14. c5 {[%emt 0:00:09]} e5 {[%emt 0:01:02]} 15. Nd6 {[%emt 0:00:12]} Re7 {[%emt 0:00:06]} 16. b4 {[%emt 0:01:34]} e4 {[%emt 0:10:12]} 17. dxe4 {[%emt 0:00:17]} Bg4 {[%emt 0:00:18]} 18. h3 {[%emt 0:01:04]} Bxf3 {[%emt 0:00:01]} 19. Bxf3 {[%emt 0:00:02]} Ne5 {[%emt 0:00:46]} 20. Bg2 {[%emt 0:00:05]} a5 {[%emt 0:01:52]} 21. f4 {[%emt 0:01:08]} Nc6 {[%emt 0:00:14]} 22. b5 {[%emt 0:00:08]} Na7 {[%emt 0:00:27]} 23. a4 {[%emt 0:01:12]} Nd7 {[%emt 0:00:41]} 24. Nxb7 {[%emt 0:00:24]} Qc8 {[%emt 0:00:05]} 25. c6 {[%emt 0:00:08]} Nb6 {[%emt 0:00:29]} 26. Qxd4 {[%emt 0:00:11]} Qc7 {[%emt 0:00:00]} 27. Qd6 {[%emt 0:01:06]} Qxd6 {[%emt 0:00:31]} 28. Nxd6 {[%emt 0:00:02]} Rd8 {[%emt 0:00:03]} 29. e5 {[%emt 0:00:08]} f6 {[%emt 0:00:09]} 30. Nf5 {[%emt 0:00:09]} Re6 {[%emt 0:00:03]} 31. exf6 {[%emt 0:00:46]} Rxf6 {[%emt 0:00:02]} 32. g4 {[%emt 0:00:16]} g6 {[%emt 0:00:07]} 33. c7 {[%emt 0:00:19]} Rd7 {[%emt 0:00:22]} 34. Ne7+ {[%emt 0:00:34]} Kf7 {[%emt 0:00:01]} 35. c8=Q {[%emt 0:01:06]} Naxc8 {[%emt 0:00:03]} 36. Nc6 {[%emt 0:00:06]} Rd2 {[%emt 0:00:20]} 37. Re4 {[%emt 0:00:21]} Nd6 {[%emt 0:00:17]} 38. Re7+ {[%emt 0:00:44]} Kf8 {[%emt 0:00:01]} 39. Rf1 {[%emt 0:00:48]} Ndc4 {[%emt 0:00:08]} 40. Rfe1 {[%emt 0:00:40]} Rxf4 {[%emt 0:00:16]} 41. Re8+ {[%emt 0:00:11]} Kg7 {[%emt 0:00:01]} 42. R1e7+ {[%emt 0:00:21]} Kh6 {[%emt 0:00:59]} 43. Rh8 {[%emt 0:00:04]} Kg5 {[%emt 0:00:00]} 44. Rhxh7 {[%emt 0:00:15]} Rff2 {[%emt 0:00:02]} 45. Bf1 {[%emt 0:00:51]} Kf4 {[%emt 0:00:13]} 46. Rhf7+ {[%emt 0:00:25]} Kg3 {[%emt 0:00:02]} 47. Rxf2 {[%emt 0:00:10]} Rxf2 {[%emt 0:00:01]} 48. Nd4 {[%emt 0:00:57]} Ra2 {[%emt 0:00:21]} 49. Ne2+ {[%emt 0:00:31]} Kh4 {[%emt 0:00:03]} 50. Nf4 {[%emt 0:00:52]} Nd2 {[%emt 0:00:19]} 51. Nxg6+ {[%emt 0:00:30]} Kg5 {[%emt 0:00:07]} 52. Ne5 {[%emt 0:00:05]} Kf6 {[%emt 0:00:22]} 53. Re8 {[%emt 0:00:22]} Ra1 {[%emt 0:00:20]} 54. Kg2 {[%emt 0:02:06]} Nxf1 {[%emt 0:00:03]} 55. Nd3 {[%emt 0:00:44]} Nd2 {[%emt 0:00:10]} 56. Nc5 {[%emt 0:00:21]} Nxa4 {[%emt 0:00:14]} 57. Re6+ {[%emt 0:00:10]} Kf7 {[%emt 0:00:02]} 58. Rc6 {[%emt 0:00:05]} Nb2 {[%emt 0:00:25]} 59. b6 {[%emt 0:00:07]} Nbc4 {[%emt 0:00:07]} 60. b7 {[%emt 0:00:05]} Rb1 {[%emt 0:00:01]} 61. Rc8 {[%emt 0:00:01]} a4 {[%emt 0:00:07]} 62. b8=Q {[%emt 0:00:07]} Rxb8 {[%emt 0:00:02]} 63. Rxb8 {[%emt 0:00:01]} a3 {[%emt 0:00:03]} 64. Ra8 {[%emt 0:00:02]} Nb1 {[%emt 0:00:06]} 65. Kg3 {[%emt 0:00:10]} Ke7 {[%emt 0:00:02]} 66. g5 {[%emt 0:00:07]} Kd6 {[%emt 0:00:01]} 67. Nb3 {[%emt 0:00:16]} Nb6 {[%emt 0:00:08]} 68. Ra6 {[%emt 0:00:07]} Kc7 {[%emt 0:00:01]} 69. g6 {[%emt 0:00:02]} Kb7 {[%emt 0:00:00]} 70. Rxb6+ {[%emt 0:00:07]} Kxb6 {[%emt 0:00:01]} 71. g7 {[%emt 0:00:01]} a2 {[%emt 0:00:01]} 72. g8=Q {[%emt 0:00:04]} Nd2 {[%emt 0:00:02]} 73. Qa8 {[%emt 0:00:09]} Nxb3 {[%emt 0:00:06]} 74. Qxa2 {[%emt 0:00:01]} Nc5 {[%emt 0:00:00]} 75. Qd5 {[%emt 0:00:04]} 1-0

[Event "Czech Open Rapid G1 2024"]
[Site "Pardubice"]
[Date "2024.07.17"]
[Round "3.29"]
[White "Chaika, Vitalii"]
[Black "Filindash, Nikita"]
[Result "1-0"]
[Annotator "RC"]
[ECO "D02"]
[WhiteElo "2111"]
[BlackElo "2007"]
[PlyCount "61"]
[EventDate "2024.07.16"]
[EventType "swiss"]
[EventCountry "CZE"]
[SourceTitle "playchess.com"]
[Source "ChessBase"]
[SourceQuality "1"]
[TimeControl "1200+10"]

1. d4 {[%emt 0:00:01]} d5 {[%emt 0:00:00]} 2. Bf4 {[%emt 0:00:02]} c5 {[%emt 0:00:02]} 3. e3 {[%emt 0:00:02]} e6 {[%emt 0:00:01]} 4. c3 {[%emt 0:00:18]} Nc6 {[%emt 0:00:01]} 5. Nf3 {[%emt 0:00:10]} Nf6 {[%emt 0:00:02]} 6. Nbd2 {[%emt 0:00:16]} Bd6 {[%emt 0:00:03]} 7. Bg3 {[%emt 0:00:23]} O-O {[%emt 0:00:06]} 8. Bd3 {[%emt 0:00:11]} Re8 {[%emt 0:00:14]} 9. Ne5 {[%emt 0:00:04]} Qc7 {[%emt 0:00:57]} 10. f4 {[%emt 0:00:06]} b6 {[%emt 0:00:03]} 11. O-O {[%emt 0:00:36]} a5 {[%emt 0:00:09]} 12. Qe2 {[%emt 0:01:49]} Bb7 {[%emt 0:00:32]} 13. a4 {[%emt 0:00:50]} Rad8 {[%emt 0:10:17]} 14. Bh4 {[%emt 0:02:40]} Be7 {[%emt 0:00:31]} 15. Rf3 {[%emt 0:02:01]} g6 {[%emt 0:03:42]} 16. Rh3 {[%emt 0:00:13]} Nxe5 {[%emt 0:04:21]} 17. fxe5 {[%emt 0:00:02]} Ne4 {[%emt 0:00:02]} 18. Rf1 {[%emt 0:04:56]} Bxh4 {[%emt 0:00:45]} 19. Rxh4 {[%emt 0:00:02]} Nxd2 20. Qxd2 {[%emt 0:00:12]} Bc6 {[%emt 0:00:18]} 21. Qf2 {[%emt 0:01:16]} Bxa4 {[%emt 0:00:30]} 22. Qf4 {[%emt 0:00:05]} c4 {[%emt 0:00:52]} 23. Bb1 {[%emt 0:00:19]} Rf8 {[%emt 0:00:18]} 24. Qh6 {[%emt 0:02:09]} f5 {[%emt 0:00:04]} 25. exf6 {[%emt 0:00:05]} Be8 {[%emt 0:00:05]} 26. Qg5 {[%emt 0:01:54]} b5 {[%emt 0:00:21]} 27. Rhf4 {[%emt 0:00:11]} b4 {[%emt 0:00:06]} 28. h4 {[%emt 0:00:36]} Kh8 {[%emt 0:00:03]} 29. h5 {[%emt 0:00:23]} gxh5 {[%emt 0:00:14]} 30. Qg7+ {[%emt 0:00:09]} Qxg7 {[%emt 0:00:03]} 31. fxg7+ {[%emt 0:00:01]} 1-0